fUSD/lending_fUSD_20240524
["ID","MTS","AMOUNT","RATE_DAILY","PERIOD"]
[327879368,1716575440747,-319.19084348,0.00026784,2]
[327879370,1716575440757,-500.18,0.00026792,2]
[327879372,1716575440766,-151.19086018,0.00026802,2]
[327879373,1716575440776,-254.83,0.00026921,2]
[327879375,1716575440785,-1200.0,0.00027,2]
[327879377,1716575440795,-155.76744125,0.00027011,2]
[327879380,1716575440804,-151.19086018,0.00027012,2]
[327879381,1716575440813,-151.19086018,0.00027027,2]
[327879383,1716575440823,-1227.2363061,0.00027097,2]
[327879385,1716575440832,-883.0724361,0.00027097,2]
[327879387,1716575440843,-1037.2364,0.00027097,2]
[327879389,1716575440852,-3440.802,0.00027099,2]
[327879391,1716575440861,-1000.0,0.00027099,2]
[327879393,1716575440870,-85856.60478694,0.00027099,2]
[327879396,1716575440883,-8410.45460878,0.00027099,2]
[327879398,1716575440894,-3131.5,0.00027099,2]
[327879400,1716575440905,-2601.44060428,0.00027099,2]
[327879402,1716575440914,-500.0,0.00027131,2]
[327879404,1716575440923,-200.0,0.00027131,2]
[327879406,1716575440932,-380.70037141,0.00027209,2]
[327879408,1716575440941,-380.80810966,0.00027224,2]
[327879410,1716575440951,-44718.0,0.0002723,2]
[327879412,1716575440960,-154.57456769,0.00027276,2]
[327879414,1716575440969,-500.0,0.00027278,2]
[327879416,1716575440978,-1566.72319261,0.00027294,2]
[327879418,1716575440987,-154.45963167,0.00027309,2]
[327879420,1716575440996,-755.2853,0.000274,2]
[327879422,1716575441006,-2005.8594,0.000274,2]
[327879424,1716575441015,-163.79970534,0.000274,2]
[327879426,1716575441025,-4040.0353817,0.000274,2]
[327879448,1716575441233,-180.02106416,0.000274,2]
[327879450,1716575441243,-450.61488617,0.000274,2]
[327879452,1716575441253,-484.10117909,0.000274,2]
[327879454,1716575441262,-1146.73702124,0.000274,2]
[327879456,1716575441271,-150.0,0.000274,5]
[327879458,1716575441281,-7010.67268185,0.000274,2]
[327879460,1716575441291,-1067.2127464,0.00027486,2]
[327879462,1716575441300,-23323.6958587,0.00027486,2]
[327879464,1716575441311,-7519.40413428,0.00027498,2]
[327879466,1716575441321,-208.21094231,0.00027498,2]
[327879468,1716575441330,-5875.64487291,0.00027498,2]
[327879470,1716575441339,-194972.19278778,0.00027498,2]
[327879472,1716575441349,-3192.42819884,0.00027499,5]
[327879474,1716575441358,-609.12807,0.00027499,2]
[327879476,1716575441367,-77660.22389014,0.000275,5]
[327879478,1716575441380,-37214.88000046,0.000275,5]
[327879490,1716575441489,-30660.22521464,0.000275,5]
[327879493,1716575441501,-5000.0,0.000275,5]
[327879495,1716575441513,-768.51,0.000275,5]
[327879497,1716575441524,-935.07810999,0.000275,5]
[327879510,1716575441638,-8151.34023542,0.000275,5]
[327879512,1716575441649,-26140.21187616,0.000275,5]
[327879530,1716575441810,-1852.95989709,0.000275,5]
[327879533,1716575441822,-4312.46253125,0.000275,5]
[327879535,1716575441834,-8165.37499998,0.000275,5]
[327879623,1716575442857,-953.04600248,0.000275,5]
[327879802,1716575444524,-250.0,0.0002109,2]
[327879804,1716575444534,-93.26428,0.00025008,2]
[327879807,1716575444546,-940.39958825,0.00025008,2]
[327879808,1716575444556,-3620.88766536,0.000275,5]
[327879811,1716575444568,-5109.8280521,0.000275,5]
[327879813,1716575444580,-1182.0105,0.000275,5]
[327879815,1716575444592,-313.15119762,0.000275,5]
[327879961,1716575445903,-937.75,0.000275,5]
[327879963,1716575445914,-1237.216,0.000275,5]
[327879965,1716575445926,-500.0,0.000275,5]
[327880350,1716575449918,-563.99099048,0.00026246,2]
[327880488,1716575712906,325.52037745,0.00012348,2]
[327880490,1716575782899,549.4401598,0.00012348,2]
[327880491,1716575782922,811.41888118,0.00012348,2]
[327880492,1716575784016,299.07538621,0.00012348,2]
[327880493,1716575796908,1360.85904098,0.00012348,2]
[327880494,1716575806028,298.2948747,0.00012348,2]
[327880495,1716575812895,1230.35181693,0.00012348,2]
[327880496,1716575812918,130.50722405,0.00012348,2]
[327880498,1716575832900,1360.85904098,0.00012348,2]
[327880499,1716575844154,155.0,0.00012899,2]
[327880500,1716575850900,1360.85904098,0.00012348,2]
[327880501,1716575853793,992.77469399,0.00012899,2]
[327880502,1716575853816,213.79804976,0.00012899,2]
[327880503,1716575854940,523.82451147,0.00012899,2]
[327880504,1716575868905,1360.85904098,0.00012348,2]
[327880505,1716575884860,1901.51839779,0.00012899,2]
[327880506,1716575884883,4000.0,0.00012899,2]
[327880507,1716575884905,4000.0,0.00012899,2]
[327880508,1716575884927,4000.0,0.00012899,2]
[327880509,1716575884950,4000.0,0.00012899,2]
[327880510,1716575884972,4000.0,0.00012899,2]
[327880511,1716575884994,4000.0,0.00012899,2]
[327880580,1716576632071,-291.44373864,0.00011684,2]
[327880581,1716576632084,-693.33,0.00011684,2]
[327880582,1716576632096,-288.87536033,0.00011684,2]
[327880583,1716576632109,-328.27,0.00011685,2]
[327880584,1716576632119,-176.64,0.00012457,2]
[327880585,1716576632129,-150.0,0.00012877,2]
[327880586,1716576632138,-159.51975664,0.0001289,2]
[327880587,1716576632147,-370.0328,0.0001289,2]
[327880588,1716576632156,-1257.72154488,0.00012898,2]
[327880589,1716576632165,-18136.01936733,0.00012899,2]
[327880590,1716576632177,-3416.54884453,0.00012899,2]
[327880591,1716576632186,-1360.85904098,0.00012899,2]
[327880592,1716576632195,-1650.8276,0.000129,2]
[327880593,1716576632204,-166.02392562,0.000129,2]
[327880594,1716576632214,-7164.03862122,0.000129,2]
[327880595,1716576632223,-450.61488617,0.000129,2]
[327880596,1716576632232,-312.00690625,0.000129,2]
[327880597,1716576632241,-1146.73702124,0.000129,2]
[327880598,1716576632251,-833.9570109,0.000129,2]
[327880599,1716576632260,-4064.26793021,0.000129,2]
[327880600,1716576632268,-833.95701088,0.0001295,2]
[327880601,1716576632277,-742.83527322,0.0001298,2]
[327880602,1716576632287,-155.88,0.0001299,2]
[327880603,1716576632295,-229.59022014,0.0001299,2]
[327880604,1716576632304,-1038.83781601,0.0001299,2]
[327880605,1716576632314,-1038.83781601,0.0001299,2]
[327880606,1716576632323,-1038.83781601,0.0001299,2]
[327880608,1716576632332,-1038.83781601,0.0001299,2]
[327880610,1716576632342,-1038.83781601,0.0001299,2]
[327880612,1716576632351,-1038.83781601,0.0001299,2]
[327880614,1716576632360,-1038.83781601,0.0001299,2]
[327880616,1716576632370,-1038.83781601,0.0001299,2]
[327880618,1716576632379,-1038.83781601,0.0001299,2]
[327880620,1716576632389,-1038.83781601,0.0001299,2]
[327880622,1716576632398,-1038.83781601,0.0001299,2]
[327880624,1716576632407,-1038.83781601,0.0001299,2]
[327880626,1716576632417,-1038.83781601,0.0001299,2]
[327880628,1716576632426,-1038.83781601,0.0001299,2]
[327880630,1716576632435,-1038.83781601,0.0001299,2]
[327880632,1716576632444,-1038.83781601,0.0001299,2]
[327880634,1716576632453,-1038.83781601,0.0001299,2]
[327880636,1716576632462,-1038.83781601,0.0001299,2]
[327880638,1716576632472,-1038.83781601,0.0001299,2]
[327880640,1716576632481,-1038.83781601,0.0001299,2]
[327880642,1716576632491,-1038.83781601,0.0001299,2]
[327880644,1716576632500,-1038.83781601,0.0001299,2]
[327880646,1716576632509,-1038.83781601,0.0001299,2]
[327880648,1716576632518,-1038.83781601,0.0001299,2]
[327880650,1716576632528,-1038.83781601,0.0001299,2]
[327880652,1716576632537,-1038.83781601,0.0001299,2]
[327880654,1716576632546,-1038.83781601,0.0001299,2]
[327880656,1716576632556,-1038.83781601,0.0001299,2]
[327880658,1716576632566,-1038.83781601,0.0001299,2]
[327880660,1716576632575,-1038.83781601,0.0001299,2]
[327880662,1716576632584,-1038.83781601,0.0001299,2]
[327880664,1716576632593,-1038.83781601,0.0001299,2]
[327880666,1716576632603,-1038.83781601,0.0001299,2]
[327880668,1716576632612,-1038.83781601,0.0001299,2]
[327880670,1716576632621,-1038.83781601,0.0001299,2]
[327880672,1716576632630,-1038.83781601,0.0001299,2]
[327880674,1716576632644,-1038.83781601,0.0001299,2]
[327880676,1716576632653,-1038.83781601,0.0001299,2]
[327880678,1716576632662,-1038.83781601,0.0001299,2]
[327880680,1716576632671,-1038.83781601,0.0001299,2]
[327880682,1716576632683,-1038.83781601,0.0001299,2]
[327880684,1716576632692,-1038.83781601,0.0001299,2]
[327880686,1716576632701,-1038.83781601,0.0001299,2]
[327880688,1716576632711,-1038.83781601,0.0001299,2]
[327880690,1716576632721,-1038.83781601,0.0001299,2]
[327880691,1716576632732,-1038.83781601,0.0001299,2]
[327880692,1716576632742,-1038.83781601,0.0001299,2]
[327880694,1716576632751,-1038.83781601,0.0001299,2]
[327880696,1716576632761,-1038.83781601,0.0001299,2]
[327880698,1716576632771,-1038.83781601,0.0001299,2]
[327880700,1716576632782,-1038.83781601,0.0001299,2]
[327880702,1716576632793,-1038.83781601,0.0001299,2]
[327880704,1716576632804,-1038.83781601,0.0001299,2]
[327880706,1716576632813,-1038.83781601,0.0001299,2]
[327880708,1716576632823,-1038.83781601,0.0001299,2]
[327880710,1716576632832,-1038.83781601,0.0001299,2]
[327880712,1716576632843,-1038.83781601,0.0001299,2]
[327880713,1716576632852,-1038.83781601,0.0001299,2]
[327880714,1716576632861,-1038.83781601,0.0001299,2]
[327880715,1716576632870,-1038.83781601,0.0001299,2]
[327880716,1716576632879,-1038.83781601,0.0001299,2]
[327880717,1716576632888,-1038.83781601,0.0001299,2]
[327880718,1716576632897,-1038.83781601,0.0001299,2]
[327880719,1716576632906,-1038.83781601,0.0001299,2]
[327880720,1716576632915,-7521.94316228,0.00012998,2]
[327880721,1716576632924,-525.92731378,0.00012998,2]
[327880722,1716576632933,-1000.0,0.00012998,2]
[327880723,1716576632943,-306.42946503,0.00012998,2]
[327880724,1716576632952,-219.78136042,0.00012999,2]
[327880725,1716576632960,-606413.09315973,0.00013,2]
[327880726,1716576632973,-95797.91133027,0.00013,2]
[327880727,1716576633020,-685.15,0.00013,2]
[327880728,1716576633032,-98356.45045264,0.00013,2]
[327880790,1716576638146,-1038.83781601,0.0001299,2]
[327880791,1716576638156,-1038.83781601,0.0001299,2]
[327880792,1716576638165,-1038.83781601,0.0001299,2]
[327880793,1716576638175,-1038.83781601,0.0001299,2]
[327880794,1716576638185,-1038.83781601,0.0001299,2]
[327880795,1716576638195,-1038.83781601,0.0001299,2]
[327880796,1716576638205,-1038.83781601,0.0001299,2]
[327880797,1716576638215,-1038.83781601,0.0001299,2]
[327880798,1716576638224,-1038.83781601,0.0001299,2]
[327880799,1716576638234,-1038.83781601,0.0001299,2]
[327880800,1716576638247,-1038.83781601,0.0001299,2]
[327880801,1716576638257,-1038.83781601,0.0001299,2]
[327880802,1716576638266,-1038.83781601,0.0001299,2]
[327880803,1716576638276,-1038.83781601,0.0001299,2]
[327880804,1716576638286,-1038.83781601,0.0001299,2]
[327880805,1716576638295,-1038.83781601,0.0001299,2]
[327880806,1716576638305,-1038.83781601,0.0001299,2]
[327880807,1716576638315,-1038.83781601,0.0001299,2]
[327880808,1716576638324,-1038.83781601,0.0001299,2]
[327880809,1716576638334,-1038.83781601,0.0001299,2]
[327880810,1716576638343,-1038.83781601,0.0001299,2]
[327880811,1716576638352,-1038.83781601,0.0001299,2]
[327880812,1716576638362,-1038.83781601,0.0001299,2]
[327880813,1716576638371,-1038.83781601,0.0001299,2]
[327880814,1716576638380,-1038.83781601,0.0001299,2]
[327880815,1716576638389,-1038.83781601,0.0001299,2]
[327880816,1716576638398,-1038.83781601,0.0001299,2]
[327880817,1716576638408,-1038.83781601,0.0001299,2]
[327880818,1716576638418,-1038.83781601,0.0001299,2]
[327880819,1716576638428,-1038.83781601,0.0001299,2]
[327880820,1716576638438,-1038.83781601,0.0001299,2]
[327880821,1716576638448,-1038.83781601,0.0001299,2]
[327880822,1716576638458,-1038.83781601,0.0001299,2]
[327880823,1716576638467,-34559.40005387,0.00013,2]
[327880824,1716576638480,-7774529.22280901,0.00013,2]
[327880825,1716576638496,-682662.63575981,0.00013,2]
[327880826,1716576638506,-340360.9836968,0.00013,2]
[327880827,1716576638675,-4438.98813009,0.00013,2]
[327880828,1716576638689,-17176.27648861,0.00013,2]
[327880829,1716576638700,-1045.49856875,0.00013,2]
[327880830,1716576638712,-974.1271636,0.00013,2]
[327880831,1716576638724,-2386.55995,0.00013,2]
[327881013,1716576640992,-1038.83781601,0.0001299,2]
[327881015,1716576641002,-1038.83781601,0.0001299,2]
[327881017,1716576641011,-1038.83781601,0.0001299,2]
[327881019,1716576641021,-94.29906322,0.00013,2]
[327881021,1716576641032,-6638.20000013,0.00013,2]
[327881023,1716576641044,-760.01039041,0.00013,2]
[327881026,1716576641056,-952.02388862,0.00013,2]
[327881130,1716576642027,-2228.71985256,0.00013,2]
[327881132,1716576642039,-777.42009448,0.00013,2]
[327881238,1716576643059,-5994.78960001,0.00013,2]
[327881269,1716576643282,-20813.4,0.00013,2]
[327881313,1716576643712,-12743.47003245,0.00013,2]
[327881520,1716576645903,-314.37304775,0.00012999,2]
[327881550,1716576646148,-1038.72907891,0.00012999,2]
[327881552,1716576646157,-2702.94592109,0.00013,2]
[327881554,1716576646168,-855.34475514,0.00013,2]
[327882463,1716577151219,39126.55428892,0.0003,30]
[327882465,1716577442192,364.15,9.594e-05,2]
[327882473,1716577676367,170.4,9.053e-05,2]
[327882497,1716577807758,-155.0,0.00010995,2]
[327882498,1716577807782,-5278.29883426,0.00010995,2]
[327882499,1716577807805,-1556.93156648,0.00010996,2]
[327882500,1716577807830,-1000.0,0.00011,2]
[327882501,1716577807851,-500.0,0.00011232,2]
[327882502,1716577807874,-1198.03,0.00011251,2]
[327882503,1716577807897,-150.0,0.00011269,2]
[327882504,1716577807919,-23900.0,0.0001127,2]
[327882505,1716577807942,-2164.37,0.00011302,2]
[327882506,1716577807965,-1000.0,0.00011326,2]
[327882507,1716577807986,-686.95,0.00011346,2]
[327882508,1716577808009,-250.0,0.00011374,2]
[327882509,1716577808037,-167.76,0.00011421,2]
[327882510,1716577808059,-499.99,0.00011421,2]
[327882511,1716577808081,-1500.0,0.00011447,2]
[327882512,1716577808104,-1219.08,0.00011465,2]
[327882513,1716577808125,-176.49,0.00011469,2]
[327882514,1716577808147,-999.99,0.00011469,2]
[327882515,1716577808168,-932.10959926,0.0001148,2]
[327882521,1716577835108,-305.75040074,0.0001148,2]
[327882522,1716577835118,-250.0,0.00011482,2]
[327882523,1716577835127,-728.13,0.00011512,2]
[327882524,1716577835137,-155.0,0.00011698,2]
[327882525,1716577835146,-364.15,0.00011858,2]
[327882526,1716577835157,-176.95,0.00011881,2]
[327882527,1716577835167,-166.45,0.00011947,2]
[327882528,1716577835177,-166.45,0.0001198,2]
[327882530,1716577835186,-1000.0,0.00012,2]
[327882532,1716577835196,-166.45,0.00012013,2]
[327882533,1716577835206,-166.45,0.00012045,2]
[327882535,1716577835215,-10076.5,0.00012066,2]
[327882538,1716577835226,-150.99,0.00012066,2]
[327882541,1716577835235,-0.58959926,0.00012078,2]
[327882544,1716577835246,-165.86040074,0.00012078,2]
[327882547,1716577835255,-166.45,0.00012111,2]
[327882550,1716577835265,-117.68959926,0.00012144,2]
[327882553,1716577835276,-48.76040074,0.00012144,2]
[327882554,1716577835285,-166.45,0.00012177,2]
[327882555,1716577835294,-166.45,0.00012209,2]
[327882556,1716577835304,-166.45,0.00012242,2]
[327882557,1716577835314,-166.45,0.00012275,2]
[327882558,1716577835323,-76.68782311,0.00012308,2]
[327882559,1716577835334,-89.76217689,0.00012308,2]
[327882560,1716577835344,-166.45,0.0001234,2]
[327882561,1716577835353,-166.45,0.00012373,2]
[327882562,1716577835362,-210.0,0.00012396,2]
[327882563,1716577835371,-10945.59975113,0.000124,2]
[327882564,1716577835380,-166.45,0.00012406,2]
[327882565,1716577835390,-166.45,0.00012439,2]
[327882566,1716577835400,-166.45,0.00012471,2]
[327882567,1716577835410,-1000.0,0.000125,2]
[327882568,1716577835419,-166.45,0.00012504,2]
[327882569,1716577835428,-166.45,0.00012537,2]
[327882570,1716577835437,-166.45,0.0001257,2]
[327882571,1716577835446,-1566.72319261,0.00012652,2]
[327882572,1716577835456,-1000.0,0.00012742,2]
[327882573,1716577835466,-380.70037141,0.00012832,2]
[327882574,1716577835476,-605.15954764,0.00012898,2]
[327882575,1716577835486,-1409.3567,0.000129,2]
[327882576,1716577835495,-150.99,0.000129,2]
[327882577,1716577835506,-2005.8594,0.000129,2]
[327882578,1716577835516,-159.51975659,0.000129,2]
[327882579,1716577835526,-1167.98297794,0.000129,2]
[327882580,1716577835535,-625.46775816,0.000129,2]
[327882581,1716577835544,-7323.76325034,0.000129,2]
[327882582,1716577835554,-169.22852844,0.000129,2]
[327882583,1716577835563,-10407.67449481,0.000129,2]
[327882584,1716577835573,-300.40992412,0.000129,2]
[327882585,1716577835586,-764.4913475,0.000129,2]
[327882586,1716577835596,-319.72047821,0.000129,2]
[327882587,1716577835606,-155.88,0.0001299,2]
[327882588,1716577835615,-782.13638794,0.00012998,2]
[327882589,1716577835627,-326.75309456,0.00012998,2]
[327882590,1716577835637,-282.49605988,0.00012998,2]
[327882591,1716577835646,-788.18220101,0.00012998,2]
[327882592,1716577835658,-155.23820873,0.00012998,2]
[327882593,1716577835668,-318.04989705,0.00012998,2]
[327882594,1716577835678,-195.76544594,0.00012998,2]
[327882595,1716577835688,-488.01922742,0.00012998,2]
[327882596,1716577835698,-523.16611257,0.00012998,2]
[327882597,1716577835708,-267.82545389,0.00012998,2]
[327882598,1716577835718,-161.35639647,0.00012998,2]
[327882599,1716577835729,-177.5004176,0.00012998,2]
[327882600,1716577835738,-155.0,0.00012998,2]
[327882601,1716577835748,-245.46916265,0.00012998,2]
[327882602,1716577835757,-155.0,0.00012998,2]
[327882603,1716577835767,-156.34895342,0.00012998,2]
[327882604,1716577835776,-890.90790075,0.00012998,2]
[327882605,1716577835786,-3279.04154518,0.00012998,2]
[327882606,1716577835797,-260.61531392,0.00012998,2]
[327882607,1716577835807,-313.92509782,0.00012998,2]
[327882608,1716577835817,-3942.13165097,0.00012998,2]
[327882609,1716577835826,-195.09043467,0.00012998,2]
[327882610,1716577835836,-2223.04939775,0.00012998,2]
[327882611,1716577835846,-2355.86968552,0.00012998,2]
[327882612,1716577835856,-155.0,0.00012998,2]
[327882613,1716577835866,-680.06943752,0.00012998,2]
[327882614,1716577835876,-155.38283062,0.00012999,2]
[327882615,1716577835886,-2284.43823994,0.00012999,2]
[327882616,1716577835895,-67959.57823035,0.00013,2]
[327882617,1716577835909,-663.5682989,0.00013,2]
[327882618,1716577835921,-1050.0,0.00013,2]
[327882619,1716577835933,-10698.90772383,0.00013,2]
[327882620,1716577835944,-404963.50733743,0.00013,2]
[327882623,1716577838384,-1023023.61945661,0.00013,2]
[327882624,1716577838396,-35202.01887685,0.00013,2]
[327882627,1716577838617,-82144.74222466,0.00013,2]
[327882861,1716577841153,-7660.93960085,0.00013,2]
[327882863,1716577841164,-500.35141074,0.00013,2]
[327882866,1716577841176,-496.35176218,0.00013,2]
[327882868,1716577841186,-342.22437989,0.00013,2]
[327882963,1716577842105,-6963.97097075,0.00013,2]
[327883178,1716577844038,-3265.2382092,0.00013,2]
[327883179,1716577844049,-69850.86488194,0.00013,2]
[327883180,1716577844060,-45442.36318256,0.00013,2]
[327883181,1716577844073,-1067191.6597777,0.00013,2]
[327883182,1716577844083,-3475.05,0.00013,2]
[327883743,1716577849978,-90798.36852037,0.00013,2]
[327883785,1716577858948,572.56871432,0.00012999,7]
[327883791,1716578674871,2304.12858441,9.749e-05,2]
[327883793,1716578741019,289.33910277,9.749e-05,2]
[327883794,1716578750433,292.46715472,9.749e-05,2]
[327883795,1716578751444,547850.12707182,9.749e-05,2]
[327883796,1716578753935,362.3044121,9.749e-05,2]
[327883797,1716578757005,289.05069527,9.749e-05,2]
[327883798,1716578764428,292.1134698,9.749e-05,2]
[327883799,1716578767439,444109.40159252,9.749e-05,2]
[327883800,1716578771940,161.1101561,9.749e-05,2]
[327883849,1716579032584,-158.44,0.00010705,2]
[327883850,1716579032594,-1500.0,0.00012246,2]
[327883851,1716579032604,-2000.0,0.0001227,3]
[327883852,1716579032613,-23900.0,0.00012317,2]
[327883853,1716579032622,-1442.24,0.00012337,2]
[327883854,1716579032631,-168.69,0.00012378,2]
[327883855,1716579032641,-380.70037141,0.00012672,2]
[327883856,1716579032650,-1566.72319261,0.00012723,2]
[327883857,1716579032660,-466.23800503,0.00012738,2]
[327883858,1716579032669,-1345.18750747,0.0001274,2]
[327883859,1716579032679,-714.02939312,0.0001287,2]
[327883860,1716579032691,-44003.97060688,0.0001287,2]
[327883861,1716579032700,-783.95022,0.0001287,2]
[327883862,1716579032710,-2147.7816,0.000129,2]
[327883863,1716579032720,-958.9777,0.000129,2]
[327883864,1716579032730,-321.8883,0.000129,2]
[327883865,1716579032739,-1000.0,0.000129,2]
[327883866,1716579032749,-300.0,0.000129,4]
[327883867,1716579032761,-2500.0,0.000129,2]
[327883868,1716579032771,-159.51975659,0.00012927,2]
[327883869,1716579032780,-16578.46777393,0.00012998,2]
[327883942,1716579038455,-810.16228092,0.0001274,2]
[327883945,1716579038568,-5951.42771908,0.0001274,2]
[327883946,1716579038578,-26756.04468101,0.00012998,2]
[327883947,1716579038587,-293.4493006,0.00012998,2]
[327883948,1716579038596,-2685.62354361,0.00012999,2]
[327883949,1716579038606,-2227.36176432,0.00012999,2]
[327883950,1716579038615,-194.9815243,0.00012999,2]
[327883951,1716579038624,-409.64950278,0.00012999,2]
[327883952,1716579038634,-298.83142374,0.00012999,2]
[327883953,1716579038642,-37861.73444147,0.00013,2]
[327883954,1716579038654,-22023.78901908,0.00013,2]
[327883955,1716579038666,-697.76274,0.00013,2]
[327883956,1716579038679,-681214.06738003,0.00013,2]
[327883957,1716579038689,-499.99,0.00013027,2]
[327883958,1716579038699,-169.22852841,0.00013323,2]
[327883959,1716579038708,-1071.1,0.00013381,2]
[327883960,1716579038718,-1071.1,0.00013384,2]
[327883961,1716579038727,-1071.1,0.00013388,2]
[327883962,1716579038737,-1071.1,0.00013391,2]
[327883964,1716579038747,-1071.1,0.00013395,2]
[327883966,1716579038757,-1071.1,0.00013398,2]
[327883968,1716579038766,-1071.1,0.00013402,2]
[327883970,1716579038776,-1071.1,0.00013405,2]
[327883972,1716579038786,-1071.1,0.00013409,2]
[327883974,1716579038795,-1071.1,0.00013413,2]
[327883976,1716579038806,-1071.1,0.00013416,2]
[327883978,1716579038815,-1071.1,0.0001342,2]
[327883980,1716579038825,-1071.1,0.00013423,2]
[327883982,1716579038835,-1071.1,0.00013427,2]
[327883984,1716579038844,-1071.1,0.0001343,2]
[327883986,1716579038853,-1071.1,0.00013434,2]
[327883988,1716579038862,-1071.1,0.00013437,2]
[327883990,1716579038872,-1071.1,0.00013441,2]
[327883992,1716579038881,-1071.1,0.00013444,2]
[327883994,1716579038891,-1071.1,0.00013448,2]
[327883996,1716579038901,-1309.71,0.00013699,2]
[327883998,1716579038910,-171.24,0.00013973,2]
[327884000,1716579038920,-216.6,0.00013973,2]
[327884002,1716579038929,-165.33,0.00013973,2]
[327884004,1716579038939,-155.16,0.00013973,2]
[327884006,1716579038948,-363.34,0.00014748,2]
[327884008,1716579038959,-1442.24,0.00015077,2]
[327884010,1716579038968,-783.95023,0.0001537,2]
[327884012,1716579038978,-159.51975659,0.00016137,2]
[327884014,1716579038990,-4351.55479547,0.00017,2]
[327884016,1716579038999,-363.34,0.00017012,2]
[327884018,1716579039011,-250.0,0.00017093,2]
[327884020,1716579039021,-250.0,0.00017132,2]
[327884022,1716579039031,-176.64,0.00017266,2]
[327884024,1716579039040,-600.0,0.00017272,2]
[327884026,1716579039051,-1442.24,0.00017817,2]
[327884027,1716579039061,-783.95023,0.0001787,2]
[327884029,1716579039072,-530.33680613,0.00018,2]
[327884031,1716579039082,-169.22852841,0.00018015,2]
[327884033,1716579039092,-321.13390217,0.00019178,2]
[327884035,1716579039102,-363.34,0.00019276,2]
[327884037,1716579039113,-159.51975659,0.00019348,2]
[327884039,1716579039123,-600.0,0.00019431,2]
[327884041,1716579039133,-400.0,0.00019552,2]
[327884043,1716579039142,-2470.0,0.000197,3]
[327884045,1716579039152,-783.95023,0.0002037,2]
[327884047,1716579039162,-216.6,0.00020447,2]
[327884049,1716579039173,-547.28428839,0.00020964,2]
[327884051,1716579039184,-811.0,0.00021,3]
[327884053,1716579039194,-1050.0,0.00021,2]
[327884055,1716579039205,-363.34,0.0002154,2]
[327884057,1716579039215,-600.0,0.0002159,2]
[327884059,1716579039226,-155.16,0.00021661,2]
[327884061,1716579039236,-395.68,0.00021918,2]
[327884063,1716579039247,-250.0,0.00021918,2]
[327884065,1716579039261,-400.0,0.00021996,2]
[327884067,1716579039272,-155.76744126,0.00022005,2]
[327884070,1716579039283,-157.82414398,0.00022094,2]
[327884072,1716579039294,-153.51597192,0.00022128,2]
[327884074,1716579039304,-154.57456769,0.00022202,2]
[327884076,1716579039314,-319.72047821,0.00022558,2]
[327884078,1716579039324,-159.51975659,0.00022558,2]
[327884080,1716579039334,-169.22852841,0.00022708,2]
[327884082,1716579039344,-783.95023,0.0002287,2]
[327884084,1716579039356,-2263.82320191,0.000229,5]
[327884086,1716579039365,-1100.0,0.00023,2]
[327884088,1716579039375,-154.30397504,0.00023168,2]
[327884090,1716579039384,-547.28428839,0.00023643,2]
[327884092,1716579039394,-1242.79002308,0.00023748,28]
[327884094,1716579039405,-600.0,0.00023749,2]
[327884096,1716579039418,-363.34,0.00023804,2]
[327884098,1716579039427,-154.30397504,0.00023908,2]
[327884100,1716579039437,-70208.6921649,0.00024,15]
[327884102,1716579039447,-166.0239256,0.00024072,2]
[327884104,1716579039459,-150.0,0.00024174,2]
[327884106,1716579039468,-154.57456769,0.00024225,2]
[327884108,1716579039478,-180.0,0.0002423,2]
[327884110,1716579039487,-150.0,0.00024275,2]
[327884112,1716579039497,-150.0,0.00024304,2]
[327884114,1716579039508,-153.51597192,0.00024322,2]
[327884116,1716579039518,-150.0,0.00024351,2]
[327884118,1716579039528,-150.0,0.0002437,2]
[327884120,1716579039538,-150.0,0.00024406,2]
[327884122,1716579039547,-150.0,0.00024414,2]
[327884124,1716579039557,-400.0,0.0002444,2]
[327884126,1716579039567,-150.0,0.00024553,2]
[327884128,1716579039576,-150.0,0.00024648,2]
[327884129,1716579039585,-150.0,0.00024702,2]
[327884131,1716579039595,-150.0,0.00024816,2]